fUST/lending_fUST_20260508
["ID","MTS","AMOUNT","RATE_DAILY","PERIOD"]
[421814293,1778182243000,-500.0,0.00011232,2]
[421814302,1778182243000,-500.0,0.00011232,2]
[421814297,1778182243000,-547.68,0.00011232,2]
[421814301,1778182243000,-500.0,0.00011232,2]
[421814375,1778182244000,-2378.58,0.00011232,2]
[421814388,1778182244000,-2010.26916131,0.00011286,2]
[421814383,1778182244000,-1364.72,0.00011232,2]
[421814381,1778182244000,-2102.55,0.00011232,2]
[421814372,1778182244000,-948.33,0.00011232,2]
[421814371,1778182244000,-1413.93,0.00011232,2]
[421814370,1778182244000,-997.29,0.00011232,2]
[421814373,1778182244000,-2159.8,0.00011232,2]
[421814376,1778182244000,-960.04,0.00011232,2]
[421814378,1778182244000,-1231.64,0.00011232,2]
[421814385,1778182244000,-500.0,0.00011232,2]
[421814374,1778182244000,-721.28,0.00011232,2]
[421814384,1778182244000,-500.0,0.00011232,2]
[421814396,1778182244000,-720.0,0.00011361,2]
[421814387,1778182244000,-537.6845,0.00011286,2]
[421814389,1778182244000,-160.0,0.00011313,2]
[421814390,1778182244000,-161.57704075,0.00011313,2]
[421814391,1778182244000,-160.0,0.00011313,2]
[421814393,1778182244000,-557.5788265,0.00011341,2]
[421814392,1778182244000,-160.0,0.00011313,2]
[421814395,1778182244000,-420.0,0.00011357,2]
[421814394,1778182244000,-155.0,0.00011344,2]
[421814405,1778182244000,-500.0,0.00011506,2]
[421814397,1778182244000,-578.20924308,0.00011396,2]
[421814398,1778182244000,-155.0,0.00011408,2]
[421814406,1778182244000,-706.38,0.00011506,2]
[421814380,1778182244000,-500.0,0.00011232,2]
[421814382,1778182244000,-500.0,0.00011232,2]
[421814377,1778182244000,-529.63,0.00011232,2]
[421814341,1778182244000,-643.95,0.00011232,2]
[421814379,1778182244000,-500.0,0.00011232,2]
[421814342,1778182244000,-3596.63,0.00011232,2]
[421814400,1778182244000,-155.0,0.00011473,2]
[421814344,1778182244000,-500.0,0.00011232,2]
[421814343,1778182244000,-1007.9,0.00011232,2]
[421814345,1778182244000,-806.48,0.00011232,2]
[421814347,1778182244000,-1821.61,0.00011232,2]
[421814354,1778182244000,-500.0,0.00011232,2]
[421814346,1778182244000,-500.0,0.00011232,2]
[421814351,1778182244000,-1877.31,0.00011232,2]
[421814352,1778182244000,-677.83,0.00011232,2]
[421814349,1778182244000,-939.85,0.00011232,2]
[421814350,1778182244000,-500.0,0.00011232,2]
[421814353,1778182244000,-518.86,0.00011232,2]
[421814368,1778182244000,-500.0,0.00011232,2]
[421814348,1778182244000,-500.0,0.00011232,2]
[421814358,1778182244000,-534.7,0.00011232,2]
[421814359,1778182244000,-3686.34,0.00011232,2]
[421814357,1778182244000,-1913.1,0.00011232,2]
[421814366,1778182244000,-1425.23,0.00011232,2]
[421814356,1778182244000,-18339.99,0.00011232,2]
[421814367,1778182244000,-857.98,0.00011232,2]
[421814362,1778182244000,-845.32,0.00011232,2]
[421814363,1778182244000,-748.84,0.00011232,2]
[421814361,1778182244000,-500.0,0.00011232,2]
[421814360,1778182244000,-1083.36,0.00011232,2]
[421814364,1778182244000,-500.0,0.00011232,2]
[421814365,1778182244000,-500.0,0.00011232,2]
[421814369,1778182244000,-500.0,0.00011232,2]
[421814355,1778182244000,-799.83,0.00011232,2]
[421814399,1778182244000,-599.60298507,0.00011451,2]
[421814386,1778182244000,-155.0,0.00011279,2]
[421814403,1778182244000,-500.0,0.00011506,2]
[421814435,1778182244000,-500.0,0.00011506,2]
[421814436,1778182244000,-597.97,0.00011506,2]
[421814441,1778182244000,-1260.11,0.00011506,2]
[421814437,1778182244000,-167.24,0.00011506,2]
[421814440,1778182244000,-500.0,0.00011506,2]
[421814438,1778182244000,-500.0,0.00011506,2]
[421814439,1778182244000,-897.8,0.00011506,2]
[421814445,1778182244000,-500.0,0.00011506,2]
[421814444,1778182244000,-500.0,0.00011506,2]
[421814446,1778182244000,-500.0,0.00011506,2]
[421814449,1778182244000,-1819.75,0.00011506,2]
[421814454,1778182244000,-500.0,0.00011506,2]
[421814448,1778182244000,-500.0,0.00011506,2]
[421814443,1778182244000,-500.0,0.00011506,2]
[421814447,1778182244000,-4320.24,0.00011506,2]
[421814450,1778182244000,-572.82,0.00011506,2]
[421814452,1778182244000,-544.5,0.00011506,2]
[421814453,1778182244000,-1120.64,0.00011506,2]
[421814456,1778182244000,-500.0,0.00011506,2]
[421814460,1778182244000,-1030.44,0.00011506,2]
[421814458,1778182244000,-1310.46,0.00011506,2]
[421814459,1778182244000,-1118.08,0.00011506,2]
[421814461,1778182244000,-500.0,0.00011506,2]
[421814457,1778182244000,-500.0,0.00011506,2]
[421814463,1778182244000,-1121.4,0.00011506,2]
[421814465,1778182244000,-2650.19,0.00011506,2]
[421814464,1778182244000,-1435.05,0.00011506,2]
[421814404,1778182244000,-500.0,0.00011506,2]
[421814455,1778182244000,-500.0,0.00011506,2]
[421814432,1778182244000,-500.0,0.00011506,2]
[421814451,1778182244000,-3652.74,0.00011506,2]
[421814442,1778182244000,-500.0,0.00011506,2]
[421814401,1778182244000,-2520.3178,0.00011506,2]
[421814434,1778182244000,-500.0,0.00011506,2]
[421814402,1778182244000,-500.0,0.00011506,2]
[421814408,1778182244000,-1716.24,0.00011506,2]
[421814407,1778182244000,-500.0,0.00011506,2]
[421814418,1778182244000,-500.0,0.00011506,2]
[421814417,1778182244000,-540.52,0.00011506,2]
[421814412,1778182244000,-500.0,0.00011506,2]
[421814419,1778182244000,-784.25,0.00011506,2]
[421814415,1778182244000,-329.27,0.00011506,2]
[421814411,1778182244000,-500.0,0.00011506,2]
[421814409,1778182244000,-500.0,0.00011506,2]
[421814410,1778182244000,-503.08,0.00011506,2]
[421814413,1778182244000,-500.0,0.00011506,2]
[421814416,1778182244000,-500.0,0.00011506,2]
[421814421,1778182244000,-511.73,0.00011506,2]
[421814430,1778182244000,-500.0,0.00011506,2]
[421814414,1778182244000,-500.0,0.00011506,2]
[421814427,1778182244000,-654.4,0.00011506,2]
[421814428,1778182244000,-500.0,0.00011506,2]
[421814425,1778182244000,-566.03,0.00011506,2]
[421814423,1778182244000,-1453.93,0.00011506,2]
[421814429,1778182244000,-557.04,0.00011506,2]
[421814426,1778182244000,-500.0,0.00011506,2]
[421814424,1778182244000,-500.0,0.00011506,2]
[421814422,1778182244000,-555.78,0.00011506,2]
[421814420,1778182244000,-668.21,0.00011506,2]
[421814462,1778182244000,-334.66,0.00011506,2]
[421814431,1778182244000,-1424.76,0.00011506,2]
[421814433,1778182244000,-724.87,0.00011506,2]
[421814491,1778182245000,-857.98,0.00011506,2]
[421814488,1778182245000,-500.0,0.00011506,2]
[421814487,1778182245000,-748.84,0.00011506,2]
[421814486,1778182245000,-845.32,0.00011506,2]
[421814489,1778182245000,-500.0,0.00011506,2]
[421814482,1778182245000,-534.7,0.00011506,2]
[421814492,1778182245000,-500.0,0.00011506,2]
[421814505,1778182245000,-2102.55,0.00011506,2]
[421814494,1778182245000,-997.29,0.00011506,2]
[421814503,1778182245000,-500.0,0.00011506,2]
[421814493,1778182245000,-500.0,0.00011506,2]
[421814504,1778182245000,-500.0,0.00011506,2]
[421814496,1778182245000,-948.33,0.00011506,2]
[421814485,1778182245000,-500.0,0.00011506,2]
[421814499,1778182245000,-2378.58,0.00011506,2]
[421814490,1778182245000,-1425.23,0.00011506,2]
[421814484,1778182245000,-1083.36,0.00011506,2]
[421814470,1778182245000,-500.0,0.00011506,2]
[421814481,1778182245000,-1913.1,0.00011506,2]
[421814497,1778182245000,-2159.8,0.00011506,2]
[421814467,1778182245000,-3596.63,0.00011506,2]
[421814466,1778182245000,-643.95,0.00011506,2]
[421814468,1778182245000,-1007.9,0.00011506,2]
[421814469,1778182245000,-806.48,0.00011506,2]
[421814480,1778182245000,-18339.99,0.00011506,2]
[421814472,1778182245000,-1821.61,0.00011506,2]
[421814473,1778182245000,-500.0,0.00011506,2]
[421814471,1778182245000,-500.0,0.00011506,2]
[421814474,1778182245000,-939.85,0.00011506,2]
[421814476,1778182245000,-1877.31,0.00011506,2]
[421814475,1778182245000,-500.0,0.00011506,2]
[421814479,1778182245000,-799.83,0.00011506,2]
[421814477,1778182245000,-677.83,0.00011506,2]
[421814478,1778182245000,-500.0,0.00011506,2]
[421814483,1778182245000,-3686.34,0.00011506,2]
[421814500,1778182245000,-960.04,0.00011506,2]
[421814525,1778182245000,-2215.0,0.00011753,2]
[421814498,1778182245000,-721.28,0.00011506,2]
[421814523,1778182245000,-1411.0,0.00011753,2]
[421814527,1778182245000,-185.0,0.00011753,2]
[421814528,1778182245000,-442.0,0.00011753,2]
[421814526,1778182245000,-741.0,0.00011753,2]
[421814530,1778182245000,-155.69,0.0001176,2]
[421814529,1778182245000,-150.362,0.00011753,2]
[421814495,1778182245000,-1413.93,0.00011506,2]
[421814533,1778182245000,-2236.66850055,0.0001176,2]
[421814532,1778182245000,-500.0,0.00011232,2]
[421814534,1778182245000,-18606.56061415,0.0001176,2]
[421814539,1778182245000,-878.91953977,0.00010958,2]
[421814541,1778182245000,-205.48046023,0.00010958,2]
[421814543,1778182245000,-1084.4,0.00011232,2]
[421814547,1778182245000,-504.51953976,0.00011506,2]
[421814545,1778182245000,-500.0,0.00011506,2]
[421814524,1778182245000,-647.0,0.00011753,2]
[421814521,1778182245000,-155.58,0.00011717,2]
[421814531,1778182245000,-103502.74759216,0.0001176,2]
[421814522,1778182245000,-155.0,0.0001173,2]
[421814520,1778182245000,-194.0,0.000117,2]
[421814501,1778182245000,-529.63,0.00011506,2]
[421814502,1778182245000,-1231.64,0.00011506,2]
[421814506,1778182245000,-500.0,0.00011506,2]
[421814508,1778182245000,-621.78829552,0.00011506,2]
[421814510,1778182245000,-155.0,0.00011537,2]
[421814509,1778182245000,-6988.33599003,0.00011512,2]
[421814512,1778182245000,-8949.5854387,0.00011569,2]
[421814511,1778182245000,-624.8737343,0.00011561,2]
[421814517,1778182245000,-155.49,0.00011695,2]
[421814515,1778182245000,-545.3247119,0.00011615,2]
[421814516,1778182245000,-155.0,0.00011666,2]
[421814514,1778182245000,-155.0,0.00011602,2]
[421814513,1778182245000,-276.261,0.000116,2]
[421814518,1778182245000,-10195.865805,0.000117,2]
[421814519,1778182245000,-194.0,0.000117,2]
[421814507,1778182245000,-1364.72,0.00011506,2]
[421814677,1778182246000,-540.52,0.0001178,2]
[421814675,1778182246000,-500.0,0.0001178,2]
[421814674,1778182246000,-500.0,0.0001178,2]
[421814672,1778182246000,-357.8,0.0001178,2]
[421814666,1778182246000,-500.0,0.0001178,2]
[421814668,1778182246000,-503.08,0.0001178,2]
[421814664,1778182246000,-1716.24,0.0001178,2]
[421814670,1778182246000,-500.0,0.0001178,2]
[421814650,1778182246000,-500.0,0.0001178,2]
[421814662,1778182246000,-584.99,0.0001178,2]
[421814660,1778182246000,-706.38,0.0001178,2]
[421814647,1778182246000,-1220.5076,0.0001178,2]
[421814644,1778182246000,-70722.97257095,0.0001176,2]
[421814642,1778182246000,-579.88046024,0.00011506,2]
[421814656,1778182246000,-400.46,0.0001178,2]
[421814654,1778182246000,-500.0,0.0001178,2]
[421814652,1778182246000,-500.0,0.0001178,2]
[421814658,1778182246000,-166.229,0.0001178,2]
[421814679,1778182246000,-500.0,0.0001178,2]
[421814687,1778182246000,-500.0,0.0001178,2]
[421814694,1778182246000,-557.04,0.0001178,2]
[421814714,1778182246000,-500.0,0.0001178,2]
[421814710,1778182246000,-500.0,0.0001178,2]
[421814716,1778182246000,-1260.11,0.0001178,2]
[421814712,1778182246000,-897.8,0.0001178,2]
[421814708,1778182246000,-597.97,0.0001178,2]
[421814706,1778182246000,-500.0,0.0001178,2]
[421814702,1778182246000,-724.87,0.0001178,2]
[421814704,1778182246000,-500.0,0.0001178,2]
[421814691,1778182246000,-654.4,0.0001178,2]
[421814681,1778182246000,-784.25,0.0001178,2]
[421814692,1778182246000,-500.0,0.0001178,2]
[421814689,1778182246000,-500.0,0.0001178,2]
[421814688,1778182246000,-566.03,0.0001178,2]
[421814683,1778182246000,-668.21,0.0001178,2]
[421814700,1778182246000,-500.0,0.0001178,2]
[421814686,1778182246000,-1453.93,0.0001178,2]
[421814695,1778182246000,-500.0,0.0001178,2]
[421814698,1778182246000,-1424.76,0.0001178,2]
[421814685,1778182246000,-555.78,0.0001178,2]
[421814782,1778182247000,-534.7,0.0001178,2]
[421814784,1778182247000,-1083.36,0.0001178,2]
[421814781,1778182247000,-1913.1,0.0001178,2]
[421814787,1778182247000,-748.84,0.0001178,2]
[421814776,1778182247000,-1877.31,0.0001178,2]
[421814778,1778182247000,-453.16,0.0001178,2]
[421814777,1778182247000,-677.83,0.0001178,2]
[421814780,1778182247000,-18339.99,0.0001178,2]
[421814775,1778182247000,-500.0,0.0001178,2]
[421814763,1778182247000,-3596.63,0.0001178,2]
[421814779,1778182247000,-799.83,0.0001178,2]
[421814786,1778182247000,-845.32,0.0001178,2]
[421814791,1778182247000,-857.98,0.0001178,2]
[421814783,1778182247000,-3686.34,0.0001178,2]
[421814788,1778182247000,-500.0,0.0001178,2]
[421814790,1778182247000,-1425.23,0.0001178,2]
[421814792,1778182247000,-500.0,0.0001178,2]
[421814789,1778182247000,-500.0,0.0001178,2]
[421814793,1778182247000,-500.0,0.0001178,2]
[421814794,1778182247000,-997.29,0.0001178,2]
[421814759,1778182247000,-2650.19,0.0001178,2]
[421814799,1778182247000,-2378.58,0.0001178,2]
[421814797,1778182247000,-2159.8,0.0001178,2]
[421814798,1778182247000,-721.28,0.0001178,2]
[421814795,1778182247000,-1413.93,0.0001178,2]
[421814785,1778182247000,-500.0,0.0001178,2]
[421814761,1778182247000,-643.95,0.0001178,2]
[421814765,1778182247000,-1007.9,0.0001178,2]
[421814755,1778182247000,-1121.4,0.0001178,2]
[421814718,1778182247000,-500.0,0.0001178,2]
[421814720,1778182247000,-500.0,0.0001178,2]
[421814722,1778182247000,-500.0,0.0001178,2]
[421814724,1778182247000,-500.0,0.0001178,2]
[421814726,1778182247000,-500.0,0.0001178,2]
[421814729,1778182247000,-1819.75,0.0001178,2]
[421814735,1778182247000,-544.5,0.0001178,2]
[421814743,1778182247000,-500.0,0.0001178,2]
[421814733,1778182247000,-3652.74,0.0001178,2]
[421814731,1778182247000,-572.82,0.0001178,2]
[421814741,1778182247000,-500.0,0.0001178,2]
[421814745,1778182247000,-500.0,0.0001178,2]
[421814747,1778182247000,-1310.46,0.0001178,2]
[421814737,1778182247000,-1120.64,0.0001178,2]
[421814739,1778182247000,-500.0,0.0001178,2]
[421814751,1778182247000,-1030.44,0.0001178,2]
[421814749,1778182247000,-1118.08,0.0001178,2]
[421814800,1778182247000,-960.04,0.0001178,2]
[421814767,1778182247000,-806.48,0.0001178,2]
[421814771,1778182247000,-636.22,0.0001178,2]
[421814772,1778182247000,-1821.61,0.0001178,2]
[421814769,1778182247000,-500.0,0.0001178,2]
[421814773,1778182247000,-500.0,0.0001178,2]
[421814753,1778182247000,-500.0,0.0001178,2]
[421814774,1778182247000,-939.85,0.0001178,2]
[421814757,1778182247000,-1435.05,0.0001178,2]
[421814796,1778182247000,-948.33,0.0001178,2]
[421814728,1778182247000,-500.0,0.0001178,2]
[421814812,1778182247000,-155.94,0.00011819,2]
[421814835,1778182247000,-500.0,0.00012054,2]
[421814829,1778182247000,-500.0,0.00012054,2]
[421814836,1778182247000,-784.25,0.00012054,2]
[421814837,1778182247000,-668.21,0.00012054,2]
[421814839,1778182247000,-1453.93,0.00012054,2]
[421814832,1778182247000,-500.0,0.00012054,2]
[421814834,1778182247000,-540.52,0.00012054,2]
[421814841,1778182247000,-566.03,0.00012054,2]
[421814851,1778182247000,-500.0,0.00012054,2]
[421814852,1778182247000,-597.97,0.00012054,2]
[421814844,1778182247000,-500.0,0.00012054,2]
[421814849,1778182247000,-724.87,0.00012054,2]
[421814843,1778182247000,-654.4,0.00012054,2]
[421814848,1778182247000,-500.0,0.00012054,2]
[421814847,1778182247000,-1424.76,0.00012054,2]
[421814840,1778182247000,-500.0,0.00012054,2]
[421814846,1778182247000,-500.0,0.00012054,2]
[421814845,1778182247000,-557.04,0.00012054,2]
[421814850,1778182247000,-307.52,0.00012054,2]
[421814854,1778182247000,-500.0,0.00012054,2]
[421814857,1778182247000,-500.0,0.00012054,2]
[421814856,1778182247000,-500.0,0.00012054,2]
[421814855,1778182247000,-1260.11,0.00012054,2]
[421814853,1778182247000,-897.8,0.00012054,2]
[421814802,1778182247000,-1231.64,0.0001178,2]
[421814838,1778182247000,-555.78,0.00012054,2]
[421814827,1778182247000,-706.38,0.00012054,2]
[421814842,1778182247000,-500.0,0.00012054,2]
[421814831,1778182247000,-500.0,0.00012054,2]
[421814803,1778182247000,-500.0,0.0001178,2]
[421814833,1778182247000,-500.0,0.00012054,2]
[421814804,1778182247000,-305.28,0.0001178,2]
[421814801,1778182247000,-529.63,0.0001178,2]
[421814806,1778182247000,-500.0,0.0001178,2]
[421814805,1778182247000,-2102.55,0.0001178,2]
[421814811,1778182247000,-256.0,0.000118,2]
[421814808,1778182247000,-500.0,0.0001178,2]
[421814810,1778182247000,-155.0,0.00011795,2]
[421814809,1778182247000,-1084.4,0.0001178,2]
[421814813,1778182247000,-155.0,0.00011859,2]
[421814814,1778182247000,-7535.40286923,0.00011878,2]
[421814825,1778182247000,-500.0,0.00012054,2]
[421814807,1778182247000,-1364.72,0.0001178,2]
[421814817,1778182247000,-155.0,0.00011924,2]
[421814830,1778182247000,-503.08,0.00012054,2]
[421814815,1778182247000,-160.0,0.0001188,3]
[421814826,1778182247000,-500.0,0.00012054,2]
[421814820,1778182247000,-155.0,0.00011988,2]
[421814818,1778182247000,-157.68,0.00011967,2]
[421814824,1778182247000,-500.0,0.00012054,2]
[421814828,1778182247000,-1716.24,0.00012054,2]
[421814822,1778182247000,-155.0,0.00012053,2]
[421814823,1778182247000,-2398.2264,0.00012054,2]
[421814819,1778182247000,-156.95,0.00011967,2]
[421814816,1778182247000,-156.39,0.00011891,2]
[421814821,1778182247000,-5947.23384453,0.00012,2]
[421814902,1778182248000,-500.0,0.00012054,2]
[421814895,1778182248000,-468.28,0.00012054,2]
[421814903,1778182248000,-500.0,0.00012054,2]
[421814898,1778182248000,-500.0,0.00012054,2]
[421814894,1778182248000,-1083.36,0.00012054,2]
[421814896,1778182248000,-845.32,0.00012054,2]
[421814891,1778182248000,-1913.1,0.00012054,2]
[421814884,1778182248000,-500.0,0.00012054,2]
[421814886,1778182248000,-500.0,0.00012054,2]
[421814892,1778182248000,-534.7,0.00012054,2]
[421814893,1778182248000,-3686.34,0.00012054,2]
[421814899,1778182248000,-500.0,0.00012054,2]
[421814914,1778182248000,-500.0,0.00012054,2]
[421814897,1778182248000,-748.84,0.00012054,2]
[421814901,1778182248000,-857.98,0.00012054,2]
[421814905,1778182248000,-1413.93,0.00012054,2]
[421814904,1778182248000,-997.29,0.00012054,2]
[421814907,1778182248000,-2159.8,0.00012054,2]
[421814906,1778182248000,-948.33,0.00012054,2]
[421814908,1778182248000,-721.28,0.00012054,2]
[421814912,1778182248000,-529.63,0.00012054,2]
[421814909,1778182248000,-855.17503673,0.00012054,2]
[421814911,1778182248000,-960.04,0.00012054,2]
[421814913,1778182248000,-1231.64,0.00012054,2]
[421814882,1778182248000,-277.01,0.00012054,2]
[421814900,1778182248000,-1425.23,0.00012054,2]
[421814887,1778182248000,-1877.31,0.00012054,2]
[421814858,1778182248000,-500.0,0.00012054,2]
[421814885,1778182248000,-939.85,0.00012054,2]
[421814864,1778182248000,-3652.74,0.00012054,2]
[421814910,1778182248000,-1523.40496327,0.00012054,2]
[421814860,1778182248000,-500.0,0.00012054,2]
[421814862,1778182248000,-1819.75,0.00012054,2]
[421814865,1778182248000,-544.5,0.00012054,2]
[421814861,1778182248000,-500.0,0.00012054,2]
[421814859,1778182248000,-500.0,0.00012054,2]
[421814863,1778182248000,-572.82,0.00012054,2]
[421814866,1778182248000,-1120.64,0.00012054,2]
[421814867,1778182248000,-500.0,0.00012054,2]
[421814868,1778182248000,-500.0,0.00012054,2]
[421814869,1778182248000,-500.0,0.00012054,2]
[421814877,1778182248000,-2650.19,0.00012054,2]
[421814875,1778182248000,-1121.4,0.00012054,2]
[421814871,1778182248000,-1310.46,0.00012054,2]
[421814874,1778182248000,-500.0,0.00012054,2]
[421814872,1778182248000,-1118.08,0.00012054,2]
[421814876,1778182248000,-1435.05,0.00012054,2]
[421814873,1778182248000,-1030.44,0.00012054,2]
[421814870,1778182248000,-500.0,0.00012054,2]
[421814879,1778182248000,-3596.63,0.00012054,2]
[421814889,1778182248000,-799.83,0.00012054,2]
[421814890,1778182248000,-18339.99,0.00012054,2]
[421814881,1778182248000,-806.48,0.00012054,2]
[421814880,1778182248000,-1007.9,0.00012054,2]
[421814888,1778182248000,-677.83,0.00012054,2]
[421814878,1778182248000,-643.95,0.00012054,2]
[421814883,1778182248000,-1821.61,0.00012054,2]
[421814915,1778182248000,-2102.55,0.00012054,2]
[421814943,1778182248000,-566.03,0.00012328,2]
[421814920,1778182248000,-984.04715411,0.00012082,2]
[421814952,1778182248000,-500.0,0.00012328,2]
[421814951,1778182248000,-724.87,0.00012328,2]
[421814949,1778182248000,-1424.76,0.00012328,2]
[421814950,1778182248000,-300.7,0.00012328,2]
[421814947,1778182248000,-557.04,0.00012328,2]
[421814956,1778182248000,-1260.11,0.00012328,2]
[421814966,1778182248000,-544.5,0.00012328,2]
[421814967,1778182248000,-1120.64,0.00012328,2]
[421814955,1778182248000,-500.0,0.00012328,2]
[421814959,1778182248000,-500.0,0.00012328,2]
[421814957,1778182248000,-500.0,0.00012328,2]
[421814958,1778182248000,-190.93,0.00012328,2]
[421814917,1778182248000,-1364.72,0.00012054,2]
[421814962,1778182248000,-500.0,0.00012328,2]
[421814960,1778182248000,-500.0,0.00012328,2]
[421814965,1778182248000,-3652.74,0.00012328,2]
[421814963,1778182248000,-1819.75,0.00012328,2]
[421814964,1778182248000,-572.82,0.00012328,2]
[421814969,1778182248000,-500.0,0.00012328,2]
[421814970,1778182248000,-611.99,0.00012328,2]
[421814971,1778182248000,-500.0,0.00012328,2]
[421814968,1778182248000,-500.0,0.00012328,2]
[421814974,1778182248000,-1030.44,0.00012328,2]
[421814972,1778182248000,-1310.46,0.00012328,2]
[421814975,1778182248000,-500.0,0.00012328,2]
[421814973,1778182248000,-1118.08,0.00012328,2]
[421814961,1778182248000,-500.0,0.00012328,2]
[421814948,1778182248000,-500.0,0.00012328,2]
[421814946,1778182248000,-457.39,0.00012328,2]
[421814953,1778182248000,-597.97,0.00012328,2]
[421814916,1778182248000,-500.0,0.00012054,2]
[421814924,1778182248000,-151.0,0.000123,2]
[421814921,1778182248000,-250.0,0.000121,2]
[421814922,1778182248000,-200.0,0.00012127,2]
[421814928,1778182248000,-584.6,0.00012328,2]
[421814919,1778182248000,-1084.4,0.00012054,2]
[421814925,1778182248000,-2398.2264,0.00012328,2]
[421814923,1778182248000,-160.0,0.00012161,4]
[421814927,1778182248000,-500.0,0.00012328,2]
[421814918,1778182248000,-500.0,0.00012054,2]
[421814926,1778182248000,-500.0,0.00012328,2]
[421814954,1778182248000,-897.8,0.00012328,2]
[421814940,1778182248000,-555.78,0.00012328,2]
[421814941,1778182248000,-1453.93,0.00012328,2]
[421814929,1778182248000,-706.38,0.00012328,2]
[421814944,1778182248000,-500.0,0.00012328,2]
[421814945,1778182248000,-654.4,0.00012328,2]
[421814942,1778182248000,-500.0,0.00012328,2]
[421814930,1778182248000,-1716.24,0.00012328,2]
[421814937,1778182248000,-500.0,0.00012328,2]
[421814936,1778182248000,-540.52,0.00012328,2]
[421814939,1778182248000,-668.21,0.00012328,2]
[421814938,1778182248000,-784.25,0.00012328,2]
[421814934,1778182248000,-500.0,0.00012328,2]
[421814933,1778182248000,-500.0,0.00012328,2]
[421814932,1778182248000,-503.08,0.00012328,2]
[421814931,1778182248000,-500.0,0.00012328,2]
[421814935,1778182248000,-500.0,0.00012328,2]
[421814980,1778182249000,-3596.63,0.00012328,2]
[421814976,1778182249000,-1121.4,0.00012328,2]
[421814979,1778182249000,-643.95,0.00012328,2]
[421814981,1778182249000,-1007.9,0.00012328,2]
[421814982,1778182249000,-806.48,0.00012328,2]
[421814978,1778182249000,-2650.19,0.00012328,2]
[421814983,1778182249000,-1821.61,0.00012328,2]
[421814984,1778182249000,-500.0,0.00012328,2]
[421814985,1778182249000,-939.85,0.00012328,2]
[421814987,1778182249000,-795.84001059,0.00012328,2]
[421814986,1778182249000,-500.0,0.00012328,2]
[421814977,1778182249000,-1435.05,0.00012328,2]
[421815064,1778183432000,-3075.06644899,9.816e-05,2]
[421815067,1778183432000,-564.77,9.816e-05,2]
[421815319,1778183438000,-500.0,0.00010441,2]
[421815307,1778183438000,-60464.88377344,0.00010436,2]
[421815303,1778183438000,-1360.16355101,9.816e-05,2]
[421815305,1778183438000,-449.51054205,0.00010115,2]
[421815314,1778183438000,-300.0,0.00010437,2]
[421815315,1778183438000,-271.93341943,0.00010441,2]
[421815323,1778183438000,-500.0,0.00010441,2]
[421815312,1778183438000,-5055.97693214,0.00010436,2]
[421815309,1778183438000,-968.13929442,0.00010436,2]
[421815321,1778183438000,-500.0,0.00010441,2]
[421815317,1778183438000,-500.0,0.00010441,2]